bitfinex/quotes_BTCUSD_20220207
["timestamp","ask_amount","ask_price","bid_price","bid_amount"]
[1644221487421,0.17744927,42707.0,42696.0,0.3]
[1644221488020,0.05,42707.0,42699.0,0.20904142]
[1644221488218,0.22955695,42710.0,42700.0,0.31600808]
[1644221488219,0.06035695,42710.0,42700.0,0.31600808]
[1644221488519,0.37628431,42716.0,42700.0,0.31600808]
[1644221488520,0.00058803,42707.0,42700.0,0.31600808]
[1644221488719,0.00058803,42707.0,42701.0,0.2667642]
[1644221489318,0.08662359,42709.0,42701.0,0.2667642]
[1644221489519,0.00058807,42707.0,42700.0,0.31600808]
[1644221490021,0.00058807,42707.0,42697.0,0.28058772]
[1644221490622,0.18662359,42709.0,42697.0,0.28058772]
[1644221490822,0.00058804,42707.0,42697.0,0.28058772]
[1644221491022,0.00058804,42707.0,42695.0,0.00066452]
[1644221491665,0.05,42708.0,42695.0,0.50994707]
[1644221491666,0.35179651,42705.0,42695.0,0.50994707]
[1644221491966,0.0875876,42702.0,42695.0,0.25416313]
[1644221492166,0.1875876,42702.0,42695.0,0.25416313]
[1644221492568,0.1,42702.0,42695.0,0.25416313]
[1644221492767,0.05,42702.0,42695.0,0.25416313]
[1644221492967,0.05,42709.0,42695.0,0.25349862]
[1644221493174,0.19977734,42712.0,42695.0,0.25416312]
[1644221493175,0.00058799,42707.0,42695.0,0.25416312]
[1644221493569,0.00058799,42707.0,42706.0,0.07971891]
[1644221493770,0.00058799,42707.0,42706.0,0.31715569]
[1644221494173,0.06037224,42714.0,42706.0,0.31715569]
[1644221494371,0.0001765,42709.0,42707.0,0.26847107]
[1644221494570,0.0001765,42709.0,42706.0,0.23743678]
[1644221494770,0.0001765,42709.0,42707.0,0.26682415]
[1644221495417,0.53549063,42705.0,42700.0,0.3266379]
[1644221495615,0.0001765,42710.0,42701.0,0.06970679]
[1644221496015,0.0001765,42710.0,42708.0,0.22187487]
[1644221496216,0.0001765,42710.0,42709.0,0.31439114]
[1644221496617,0.06037224,42714.0,42709.0,0.31439114]
[1644221496814,0.1,42715.0,42709.0,0.31439114]
[1644221496815,0.00058808,42712.0,42709.0,0.31439114]
[1644221497614,0.05,42711.0,42709.0,0.31439114]
[1644221498016,0.05,42711.0,42705.0,0.39207542]
[1644221498963,0.05,42711.0,42705.0,0.08859132]
[1644221499165,0.00058808,42710.0,42703.0,0.24449805]
[1644221500064,0.05,42711.0,42703.0,0.24449805]
[1644221500266,0.07010843,42709.0,42703.0,0.24449805]
[1644221500465,0.07069651,42709.0,42703.0,0.4919666]
[1644221500665,0.06620131,42709.0,42703.0,0.4919666]
[1644221500966,0.11620131,42709.0,42703.0,0.4919666]
[1644221501168,0.05058808,42709.0,42703.0,0.4919666]
[1644221501368,0.1,42710.0,42703.0,0.4919666]
[1644221501567,0.00058808,42708.0,42703.0,0.4919666]
[1644221501967,0.00058808,42708.0,42703.0,0.5505086]
[1644221502614,0.002,42716.0,42703.0,0.5505086]
[1644221502815,0.002,42716.0,42710.0,0.0679072]
[1644221503616,0.002,42716.0,42711.0,0.26455592]
[1644221503919,0.002,42716.0,42704.0,0.122]
[1644221503920,0.00058808,42715.0,42705.0,0.32198814]
[1644221504517,0.00058808,42715.0,42710.0,0.22129353]
[1644221504716,0.00058808,42715.0,42710.0,0.29423373]
[1644221504916,0.002,42716.0,42711.0,0.26483402]
[1644221505117,0.00058808,42715.0,42710.0,0.29423373]
[1644221506164,0.002,42716.0,42710.0,0.29423373]
[1644221506366,0.00058808,42715.0,42711.0,0.26528977]
[1644221507367,0.002,42716.0,42712.0,0.0468]
[1644221507570,0.00058808,42715.0,42712.0,0.0468]
[1644221507770,0.00042127,42715.0,42712.0,0.0468]
[1644221507967,0.00042127,42715.0,42712.0,0.35107205]
[1644221508166,0.00042127,42715.0,42712.0,0.0468]
[1644221508566,0.002,42716.0,42712.0,0.0468]
[1644221517617,0.002,42716.0,42711.0,0.26528977]
[1644221518218,0.002,42716.0,42710.0,0.0729402]
[1644221518219,0.052,42716.0,42710.0,0.0729402]
[1644221520319,0.05,42714.0,42710.0,0.0729402]
[1644221520516,0.052,42716.0,42710.0,0.0729402]
[1644221520517,0.05,42711.0,42710.0,0.0729402]
[1644221520719,0.05,42714.0,42707.0,0.26697496]
[1644221521193,0.05,42714.0,42705.0,0.24209098]
[1644221522392,0.05,42715.0,42713.0,0.07725812]
[1644221522594,0.05,42714.0,42713.0,0.07725812]
[1644221523092,0.05,42714.0,42705.0,0.35989098]
[1644221523295,0.05,42714.0,42705.0,0.24209098]
[1644221523696,0.05,42715.0,42705.0,0.30062898]
[1644221523895,0.05,42714.0,42705.0,0.30062898]
[1644221524094,0.05,42714.0,42705.0,0.24209098]
[1644221524296,0.05,42714.0,42713.0,0.07185682]
[1644221524496,0.002,42716.0,42713.0,0.07185682]
[1644221526122,0.002,42716.0,42713.0,0.24300353]
[1644221526322,0.002,42716.0,42714.0,0.08516939]
[1644221526521,0.002,42716.0,42714.0,0.35609468]
[1644221526723,0.002,42716.0,42715.0,0.28417712]
[1644221527427,0.001,42716.0,42715.0,0.28417712]
[1644221529671,0.001,42716.0,42715.0,0.33097712]
[1644221531876,0.00058767,42718.0,42716.0,0.75]
[1644221532075,0.00058767,42718.0,42717.0,0.38547892]
[1644221532276,0.00058767,42718.0,42717.0,0.48547892]
[1644221532526,0.011,42719.0,42717.0,0.48547892]
[1644221532728,0.011,42719.0,42718.0,0.3311776]
[1644221532922,0.011,42719.0,42718.0,0.4779776]
[1644221534124,0.0001,42719.0,42718.0,0.5364866]
[1644221534726,0.0001,42719.0,42718.0,0.4779776]
[1644221537372,0.0001,42719.0,42718.0,0.4784376]
[1644221541122,0.00060265,42721.0,42720.0,0.23020612]
[1644221541424,0.00119032,42721.0,42720.0,0.0468]
[1644221541625,0.00119032,42721.0,42718.0,0.00046]
[1644221542220,0.00060265,42721.0,42718.0,0.00046]
[1644221543678,0.00060265,42721.0,42718.0,0.27127695]
[1644221544681,0.00060265,42721.0,42719.0,0.19752359]
[1644221545676,0.00060265,42721.0,42719.0,0.24432359]
[1644221546079,0.00228586,42723.0,42721.0,0.75]
[1644221546080,0.00187353,42723.0,42721.0,0.75]
[1644221546277,0.00158767,42723.0,42722.0,0.3468]
[1644221546477,0.00158767,42723.0,42722.0,0.0468]
[1644221546877,0.00158767,42723.0,42722.0,0.295158]
[1644221547079,0.0005166,42723.0,42722.0,0.295158]
[1644221549121,0.0005166,42723.0,42722.0,0.341958]
[1644221549320,0.0005166,42723.0,42722.0,0.441958]
[1644221549722,0.0005166,42723.0,42722.0,0.1468]
[1644221550121,0.0005166,42723.0,42722.0,0.41470509]
[1644221550720,0.00128586,42726.0,42722.0,0.41470509]
[1644221550925,0.35836729,42743.0,42725.0,0.4]
[1644221551176,0.001,42743.0,42727.0,0.26598311]
[1644221551375,0.001,42743.0,42729.0,0.30054861]
[1644221551671,0.001,42743.0,42731.0,0.1403]
[1644221551878,0.001,42743.0,42741.0,0.31466524]
[1644221552070,0.001,42743.0,42741.0,0.0468]
[1644221552271,0.001,42743.0,42741.0,0.1468]
[1644221553271,0.001,42743.0,42741.0,0.0468]
[1644221553674,0.001,42743.0,42741.0,0.3695528]
[1644221554072,0.001,42743.0,42741.0,0.4695528]
[1644221559371,0.001,42743.0,42741.0,0.5195528]
[1644221561372,0.001,42743.0,42741.0,0.4727528]
[1644221565226,0.001,42743.0,42741.0,0.0468]
[1644221565425,0.051,42742.0,42741.0,0.0468]
[1644221565622,0.001,42742.0,42741.0,0.0468]
[1644221565826,0.001,42742.0,42740.0,0.28567579]
[1644221566669,0.001,42742.0,42740.0,0.20157753]
[1644221567876,0.001,42742.0,42731.0,0.058497]
[1644221568073,0.05,42733.0,42727.0,1.16531563]
[1644221568273,0.04306133,42733.0,42727.0,0.76557863]
[1644221568474,0.04306133,42728.0,42723.0,0.5785]
[1644221568773,0.04306133,42729.0,42728.0,0.25970564]
[1644221568973,0.00058473,42732.0,42728.0,0.25970564]
[1644221569175,0.04306133,42729.0,42728.0,0.25970564]
[1644221569478,0.00058473,42732.0,42729.0,0.36293755]
[1644221569673,0.00028505,42731.0,42729.0,0.36293755]
[1644221569937,0.00028505,42738.0,42737.0,0.2618373]
[1644221570130,0.04334638,42740.0,42738.0,0.0850076]
[1644221570332,0.04306133,42740.0,42738.0,0.0850076]
[1644221572529,0.04306133,42740.0,42738.0,0.34892876]
[1644221572729,0.04306133,42740.0,42739.0,0.26607093]
[1644221572929,0.00086978,42741.0,42739.0,0.26607093]
[1644221572930,0.00058473,42741.0,42739.0,0.32455693]
[1644221573129,0.00058473,42741.0,42740.0,0.29500298]
[1644221573328,0.001,42742.0,42740.0,0.29500298]
[1644221573535,0.001,42742.0,42741.0,0.0468]
[1644221573778,0.001,42742.0,42741.0,0.39799851]
[1644221574173,0.001,42742.0,42741.0,0.49799851]
[1644221574576,0.001,42743.0,42741.0,0.81799851]
[1644221574777,0.001,42743.0,42742.0,0.32551496]
[1644221574973,0.001,42743.0,42742.0,0.37231496]
[1644221575172,0.001,42743.0,42742.0,0.47231496]
[1644221575372,0.001,42743.0,42742.0,0.1468]
[1644221576375,0.001,42743.0,42740.0,0.05693867]
[1644221576574,0.001,42743.0,42740.0,0.05]
[1644221577833,0.001,42743.0,42739.0,0.058486]
[1644221577834,0.04306133,42741.0,42739.0,0.058486]
[1644221578034,0.04306133,42741.0,42737.0,0.2618373]
[1644221578236,0.04306133,42741.0,42731.0,0.116993]
[1644221578237,0.04306133,42738.0,42728.0,0.30011772]
[1644221578435,0.3468,42737.0,42730.0,0.5]
[1644221578634,0.3468,42737.0,42720.0,0.00066492]
[1644221578635,0.04306133,42731.0,42720.0,0.00066492]
[1644221578835,0.04306133,42721.0,42720.0,0.00066492]
[1644221579035,0.04306133,42721.0,42720.0,0.06605501]
[1644221579435,0.04306133,42721.0,42720.0,0.06539009]
[1644221581481,0.03806133,42721.0,42720.0,0.06539009]
[1644221581680,0.00058467,42727.0,42724.0,0.34119175]
[1644221581881,0.00028505,42734.0,42724.0,0.34119175]
[1644221582079,0.03806133,42725.0,42720.0,0.06539009]
[1644221582279,0.03806133,42724.0,42720.0,0.06539009]
[1644221582979,0.03806133,42724.0,42722.0,0.2850826]
[1644221584182,0.03806133,42724.0,42722.0,0.29702127]
[1644221584383,0.00028505,42733.0,42722.0,0.29702127]
[1644221584583,0.5681,42745.0,42722.0,0.29702127]
[1644221584584,0.03806133,42732.0,42728.0,0.01193867]
[1644221584784,0.03806133,42732.0,42731.0,0.24921072]
[1644221585025,0.03806133,42732.0,42731.0,0.31869112]
[1644221585225,0.03806133,42732.0,42731.0,0.57030846]
[1644221585430,0.03806133,42732.0,42731.0,0.95887233]
[1644221585822,0.38491506,42744.0,42731.0,0.95887233]
[1644221585823,0.00058473,42734.0,42731.0,0.95887233]
[1644221586023,0.00058473,42734.0,42731.0,0.94693366]
[1644221586626,0.00028505,42735.0,42731.0,0.94693366]
[1644221586824,0.03806133,42736.0,42733.0,0.01193867]
[1644221587026,0.00086978,42735.0,42733.0,0.01193867]
[1644221587225,0.00058473,42735.0,42733.0,0.01193867]
[1644221587825,0.00028505,42738.0,42733.0,0.01193867]
[1644221588028,0.03806133,42739.0,42738.0,0.24590766]
[1644221588225,0.03806133,42739.0,42738.0,0.32553788]
[1644221588428,0.03806133,42739.0,42736.0,0.058489]
[1644221588671,0.03806133,42739.0,42732.0,0.0468]
[1644221588871,0.28772965,42745.0,42726.0,0.486]
[1644221588872,0.03806133,42733.0,42726.0,0.486]
[1644221589070,0.03806133,42728.0,42723.0,0.30011772]
[1644221589275,0.03806133,42724.0,42722.0,0.69231772]
[1644221589486,0.00058473,42738.0,42723.0,0.31964369]
[1644221589487,0.03806133,42731.0,42723.0,0.31964369]
[1644221589671,0.03806133,42731.0,42723.0,0.57157694]
[1644221590474,0.00058473,42729.0,42723.0,0.57157694]
[1644221591273,0.00052473,42729.0,42723.0,0.57157694]
[1644221591473,0.03806133,42731.0,42723.0,0.57157694]
[1644221591970,0.00028532,42732.0,42723.0,0.57157694]
[1644221592170,0.00028532,42735.0,42723.0,0.57157694]
[1644221592422,0.28719983,42736.0,42723.0,0.57157694]
[1644221592618,0.03806133,42730.0,42723.0,0.58351561]
[1644221593222,0.03806133,42730.0,42724.0,0.37996988]
[1644221594622,0.06834707,42737.0,42724.0,0.37996988]
[1644221594825,0.03806133,42728.0,42723.0,0.57157694]
[1644221595022,0.28978955,42736.0,42723.0,0.57157694]
[1644221595222,0.03806133,42724.0,42723.0,0.57157694]
[1644221595521,0.00058458,42733.0,42723.0,0.32373207]
[1644221595522,0.02806133,42730.0,42723.0,0.32373207]
[1644221595724,0.00058458,42733.0,42723.0,0.32373207]
[1644221595725,0.00028532,42732.0,42723.0,0.32373207]
[1644221595922,0.02806133,42727.0,42723.0,0.32373207]
[1644221596178,0.02806133,42729.0,42723.0,0.32373207]
[1644221596576,0.02864589,42729.0,42723.0,0.32373207]
[1644221597377,0.02806133,42729.0,42723.0,0.32373207]
[1644221597778,0.0286459,42729.0,42723.0,0.32373207]
[1644221597976,0.02806133,42724.0,42723.0,0.32373207]
[1644221598178,0.00058457,42729.0,42723.0,0.32373207]
[1644221598380,0.02806133,42724.0,42723.0,0.32373207]
[1644221599178,0.00058454,42729.0,42723.0,0.32373207]
[1644221599179,0.02806133,42728.0,42723.0,0.32373207]
[1644221599779,0.00028532,42735.0,42718.0,0.058973]
[1644221600033,0.27981016,42736.0,42721.0,0.00066485]
[1644221600034,0.05,42736.0,42721.0,0.00066485]
[1644221600229,0.00058456,42729.0,42721.0,0.00066485]
[1644221600628,0.00058456,42729.0,42722.0,0.2225399]
[1644221600831,0.00058456,42729.0,42725.0,0.08417568]
[1644221601034,0.00028532,42733.0,42724.0,0.24462426]
[1644221601230,0.08107058,42734.0,42724.0,0.24462426]
[1644221601429,0.00028532,42733.0,42724.0,0.24462426]
[1644221601632,0.08107058,42734.0,42724.0,0.24462426]
[1644221601832,0.00028532,42733.0,42724.0,0.24462426]
[1644221602032,0.08107058,42734.0,42724.0,0.24462426]
[1644221602231,0.00028532,42733.0,42724.0,0.24462426]
[1644221602431,0.08107058,42734.0,42725.0,0.00048984]
[1644221602731,0.00028532,42733.0,42724.0,0.24364459]
[1644221602931,0.00028532,42733.0,42724.0,0.32592931]
[1644221603131,0.08107058,42734.0,42724.0,0.32592931]
[1644221604175,0.00028532,42734.0,42724.0,0.32592931]
[1644221604375,0.36753739,42733.0,42724.0,0.08228472]
[1644221604578,0.71505382,42732.0,42724.0,0.08228472]
[1644221604778,0.86505382,42732.0,42718.0,0.00046]
[1644221604975,0.32718,42730.0,42718.0,0.00046]
[1644221605175,0.31215396,42729.0,42718.0,0.00046]
[1644221605374,0.41215396,42729.0,42718.0,0.00046]
[1644221605578,0.31215396,42729.0,42718.0,0.00046]
[1644221605779,0.31215396,42729.0,42722.0,0.08225853]
[1644221605977,0.07018372,42731.0,42722.0,0.08225853]
[1644221606180,0.00368992,42729.0,42716.0,0.22391842]
[1644221606377,0.12018372,42731.0,42716.0,0.22391842]
[1644221606576,0.05,42731.0,42716.0,0.22391842]
[1644221606777,0.0968,42732.0,42716.0,0.22391842]
[1644221606977,0.0468,42732.0,42717.0,0.33666309]
[1644221607177,0.0468,42732.0,42722.0,0.00066506]
[1644221607436,0.00058509,42729.0,42722.0,0.00066506]
[1644221607623,0.06324282,42728.0,42722.0,0.00066506]
[1644221608224,0.40976709,42731.0,42719.0,0.08114988]
[1644221608423,0.40976709,42731.0,42723.0,0.00066505]
[1644221608623,0.0005851,42729.0,42723.0,0.00066505]
[1644221609021,0.32718,42728.0,42723.0,0.00066505]
[1644221609222,0.37718,42728.0,42723.0,0.00066505]
[1644221609424,0.05,42728.0,42713.0,0.96051194]
[1644221609626,0.05,42728.0,42723.0,0.00048984]
[1644221609627,0.2,42728.0,42723.0,0.00048984]
[1644221609826,0.32718,42727.0,42723.0,0.00048984]
[1644221610323,0.32718,42725.0,42723.0,0.00048984]
[1644221610522,0.00586385,42724.0,42723.0,0.00048984]
[1644221610725,0.0863437,42720.0,42711.0,0.34274591]
[1644221610923,0.2,42725.0,42722.0,0.00048986]
[1644221611174,0.32718,42724.0,42722.0,0.00048986]
[1644221611377,0.42718,42724.0,42722.0,0.00048986]
[1644221611976,0.07115145,42723.0,42711.0,0.34274591]
[1644221612177,0.32718,42722.0,42721.0,0.00066542]
[1644221612376,0.42718,42722.0,42721.0,0.00066542]
[1644221613282,0.32718,42721.0,42719.0,0.00066544]
[1644221614278,0.1,42723.0,42712.0,0.05]
[1644221614481,0.32718,42721.0,42718.0,0.00066546]
[1644221615541,0.08294,42722.0,42713.0,0.07212024]
[1644221615741,0.32718,42721.0,42717.0,0.00066546]
[1644221616743,0.32718,42721.0,42711.0,0.27021027]
[1644221616744,0.28345646,42724.0,42711.0,0.26754802]
[1644221616944,0.32718,42722.0,42717.0,0.00066547]
[1644221617945,0.32718,42722.0,42716.0,0.07765043]
[1644221618148,0.32718,42722.0,42717.0,0.00066546]
[1644221618976,0.55,42723.0,42722.0,0.67282]
[1644221619180,0.877202,42723.0,42722.0,0.67282]
[1644221620478,0.377202,42723.0,42722.0,0.67282]
[1644221620778,0.1,42725.0,42722.0,0.67282]
[1644221620779,0.2,42725.0,42722.0,0.67282]
[1644221620978,0.5,42724.0,42722.0,0.67282]
[1644221621378,0.6,42724.0,42722.0,0.67282]
[1644221621981,0.5,42724.0,42722.0,0.67282]
[1644221622825,0.5,42724.0,42723.0,0.327202]
[1644221623628,0.00058624,42729.0,42723.0,0.327202]
[1644221623827,0.5,42730.0,42723.0,0.327202]
[1644221624027,0.00058628,42729.0,42723.0,0.0006654]
[1644221624228,0.00058628,42729.0,42726.0,0.06917595]
[1644221625029,0.5,42732.0,42726.0,0.06917595]
[1644221625227,0.55,42732.0,42726.0,0.06917595]
[1644221625427,0.00058629,42730.0,42726.0,0.06917595]
[1644221626278,0.11037413,42733.0,42726.0,0.06917595]
[1644221626578,0.00058629,42730.0,42726.0,0.06917595]
[1644221626878,0.00058629,42730.0,42723.0,0.00066541]
[1644221627480,0.0468,42731.0,42722.0,0.67282]
[1644221627679,0.00058629,42729.0,42723.0,0.00066541]
[1644221627878,0.36932103,42725.0,42723.0,0.00066541]
[1644221628078,0.327202,42724.0,42723.0,0.00066541]
[1644221628680,0.327202,42724.0,42722.0,0.67282]
[1644221629480,0.477202,42724.0,42722.0,0.67282]
[1644221629685,0.327202,42723.0,42722.0,0.67282]
[1644221629935,0.427202,42723.0,42722.0,0.67282]
[1644221630128,0.477202,42723.0,42722.0,0.67282]
[1644221631631,0.75356391,42723.0,42722.0,0.67282]
[1644221631829,0.80036391,42723.0,42722.0,0.67282]
[1644221632629,0.80036391,42723.0,42722.0,0.13740041]
[1644221632830,1.30036391,42723.0,42722.0,0.13740041]
[1644221633680,1.024002,42723.0,42722.0,0.13740041]
[1644221635483,1.30459421,42723.0,42722.0,0.13740041]
[1644221638036,1.024002,42723.0,42722.0,0.13740041]
[1644221639141,0.874002,42723.0,42722.0,0.13740041]
[1644221639341,0.827202,42723.0,42722.0,0.13740041]
[1644221640439,1.19676797,42723.0,42722.0,0.13740041]
[1644221641497,1.39676797,42723.0,42722.0,0.13740041]
[1644221641696,1.10954834,42723.0,42722.0,0.13740041]
[1644221643297,1.027202,42723.0,42722.0,0.13740041]
[1644221644399,1.10503725,42723.0,42722.0,0.13740041]
[1644221644801,1.39137521,42723.0,42722.0,0.13740041]
[1644221647135,1.65950562,42723.0,42722.0,0.13740041]
[1644221648680,1.39137521,42723.0,42722.0,0.13740041]
[1644221650982,1.63786336,42723.0,42722.0,0.13740041]
[1644221651181,0.327202,42721.0,42720.0,0.00048952]
[1644221651383,1.40761404,42721.0,42720.0,0.00048952]
[1644221651583,0.23682115,42715.0,42706.0,0.00021397]
[1644221651782,0.23682115,42715.0,42712.0,0.00195848]
[1644221651783,0.0468,42714.0,42712.0,0.00195848]
[1644221651981,0.62966998,42713.0,42712.0,0.00195848]
[1644221652181,0.67646998,42713.0,42712.0,0.00195848]
[1644221652435,0.89108666,42713.0,42712.0,0.00195848]
[1644221652628,1.16890658,42713.0,42712.0,0.00195848]
[1644221652828,1.16890658,42713.0,42707.0,0.00021397]
[1644221653029,0.327202,42712.0,42710.0,0.00066521]
[1644221653330,0.0468,42711.0,42710.0,0.00066521]
[1644221653928,0.0468,42711.0,42707.0,0.00021397]
[1644221654129,0.0468,42711.0,42708.0,0.00016523]
[1644221654529,0.27893351,42710.0,42708.0,0.00016523]
[1644221654728,0.0468,42710.0,42708.0,0.00016523]
[1644221655128,0.0468,42710.0,42703.0,0.05021397]
[1644221655129,0.0468,42710.0,42704.0,0.00021397]
[1644221655328,0.0468,42710.0,42703.0,0.05021397]
[1644221655529,0.0468,42710.0,42705.0,0.23208068]
[1644221656385,0.0468,42710.0,42702.0,0.00021397]
[1644221656585,0.0468,42710.0,42701.0,0.62497334]
[1644221656987,0.19991867,42718.0,42709.0,0.05]
[1644221657187,1.42456419,42721.0,42714.0,0.05]
[1644221657188,0.5,42716.0,42714.0,0.05]
[1644221657389,0.327202,42715.0,42714.0,0.05]
[1644221657887,0.327202,42715.0,42710.0,0.11597547]
[1644221658088,0.5,42716.0,42710.0,0.05]
[1644221658287,0.07644364,42719.0,42710.0,0.05]
[1644221658495,0.07644364,42719.0,42707.0,0.00021397]
[1644221658496,0.23007231,42714.0,42707.0,0.00021397]
[1644221658689,0.23007231,42714.0,42706.0,0.00021397]
[1644221658889,0.0468,42713.0,42706.0,0.00066527]
[1644221659091,0.327202,42712.0,42706.0,0.00066527]
[1644221659287,0.0468,42711.0,42706.0,0.00066527]
[1644221659490,0.0468,42710.0,42706.0,0.00066527]
[1644221659688,0.0468,42710.0,42709.0,0.05]
[1644221660330,0.0468,42710.0,42707.0,0.00021397]
[1644221660532,0.0468,42710.0,42706.0,0.00066527]
[1644221661135,0.0468,42710.0,42706.0,0.05]
[1644221661331,0.0468,42710.0,42706.0,0.05066526]
[1644221661531,0.0468,42710.0,42709.0,0.26991915]
[1644221662133,0.0602707,42713.0,42709.0,0.26991915]
[1644221662334,0.1,42717.0,42711.0,0.05]
[1644221662734,0.05,42718.0,42709.0,0.26991915]
[1644221662935,0.5,42717.0,42709.0,0.27013312]
[1644221663334,0.05,42718.0,42709.0,0.27013312]
[1644221663978,0.11343582,42718.0,42709.0,0.27013312]
[1644221664179,0.11343582,42718.0,42705.0,0.36395699]
[1644221664180,0.05,42717.0,42705.0,0.36395699]
[1644221664380,0.05,42717.0,42706.0,0.0002144]
[1644221664578,0.05,42717.0,42705.0,0.17182225]
[1644221664579,0.05,42717.0,42705.0,0.17203665]
[1644221664779,0.05,42717.0,42705.0,0.42271439]
[1644221665181,0.05,42717.0,42708.0,0.23605872]
[1644221665380,0.05,42717.0,42708.0,0.3010415]
[1644221665880,0.06343582,42718.0,42708.0,0.3010415]
[1644221666283,0.00017606,42715.0,42708.0,0.3010415]
[1644221667181,0.4324706,42719.0,42708.0,0.3010415]
[1644221667434,0.00058687,42714.0,42708.0,0.3010415]
[1644221667629,0.00058687,42714.0,42708.0,0.06498278]
[1644221668431,0.1,42718.0,42708.0,0.06498278]
[1644221668631,0.00058687,42713.0,42708.0,0.06498278]
[1644221668834,0.00058687,42713.0,42708.0,0.06519718]
[1644221669631,0.29710171,42714.0,42708.0,0.06498278]
[1644221669832,0.00058687,42713.0,42707.0,0.0002144]
[1644221670031,0.00058687,42713.0,42706.0,0.21899014]
[1644221670432,0.00058687,42713.0,42706.0,0.0002144]
[1644221670634,0.00058687,42713.0,42705.0,0.25086047]
[1644221670935,0.29710171,42714.0,42706.0,0.08233362]
[1644221671179,0.00058687,42712.0,42706.0,0.08254802]
[1644221671384,0.00058687,42712.0,42706.0,0.29344792]
[1644221671580,0.00058687,42712.0,42707.0,0.327202]
[1644221671782,0.00058687,42712.0,42707.0,0.3274164]
[1644221671981,0.33052391,42716.0,42707.0,0.3274164]
[1644221672181,0.33052391,42716.0,42707.0,0.0002144]
[1644221672182,0.00058687,42712.0,42707.0,0.0002144]
[1644221672382,0.00058687,42712.0,42708.0,0.327202]
[1644221673181,0.27657446,42719.0,42708.0,0.327202]
[1644221673383,0.05,42718.0,42714.0,0.0734114]
[1644221673583,0.327202,42717.0,42712.0,0.19465787]
[1644221673783,0.377202,42717.0,42712.0,0.19465787]
[1644221673986,0.05,42717.0,42712.0,0.19465787]
[1644221674383,0.05,42718.0,42708.0,0.0002144]
[1644221674586,0.36115916,42716.0,42708.0,0.24422809]
[1644221674786,0.28078796,42715.0,42708.0,0.0002144]
[1644221675033,0.327202,42714.0,42707.0,0.0002144]
[1644221675234,0.1,42714.0,42705.0,0.0002144]
[1644221675432,0.1,42714.0,42704.0,0.51964466]
[1644221675632,0.38078796,42715.0,42706.0,0.24701044]
[1644221675832,0.00058687,42712.0,42706.0,0.24701044]
[1644221676735,0.06414551,42713.0,42706.0,0.22201044]
[1644221677135,0.00058687,42711.0,42705.0,0.0002144]
[1644221677334,0.00058687,42711.0,42704.0,0.58612722]
[1644221677535,0.00058687,42711.0,42704.0,0.06714751]
[1644221677735,0.00058687,42711.0,42704.0,0.06736191]
[1644221677934,0.06414551,42713.0,42704.0,0.06648258]
[1644221678136,0.05,42712.0,42704.0,0.00066492]
[1644221678334,0.00058685,42711.0,42704.0,0.00066492]
[1644221678885,0.00058685,42711.0,42704.0,0.00087932]
[1644221679086,0.00058685,42711.0,42704.0,0.0002144]
[1644221679284,0.16414551,42713.0,42703.0,0.18959208]
[1644221679484,0.00058685,42711.0,42704.0,0.00066492]
[1644221679683,0.00058685,42711.0,42704.0,0.00087932]
[1644221680484,0.32919245,42712.0,42704.0,0.0002144]
[1644221680685,0.00058685,42711.0,42704.0,0.00066492]
[1644221680884,0.00058685,42711.0,42704.0,0.00087932]
[1644221681485,0.00058685,42711.0,42704.0,0.00066492]
[1644221681687,0.27824786,42712.0,42703.0,0.0002144]
[1644221681886,0.00058685,42711.0,42706.0,0.24763502]
[1644221682732,0.05,42713.0,42706.0,0.24784942]
[1644221682933,0.05,42713.0,42707.0,0.07274262]
[1644221683131,0.00058686,42711.0,42707.0,0.07295702]
[1644221683531,0.00058686,42711.0,42707.0,0.07274262]
[1644221683931,0.61102449,42716.0,42707.0,0.07274262]
[1644221684133,0.1,42715.0,42707.0,0.07295702]
[1644221684335,0.00058687,42711.0,42707.0,0.07295702]
[1644221684532,0.00058687,42711.0,42707.0,0.07274262]
[1644221685131,0.27740912,42715.0,42707.0,0.07274262]
[1644221685330,0.27740912,42715.0,42707.0,0.07295702]
[1644221685532,0.327202,42714.0,42712.0,0.20680948]
[1644221686683,0.05,42714.0,42712.0,0.20680948]
[1644221686886,0.24986533,42718.0,42712.0,0.20680948]
[1644221687086,0.327202,42717.0,42712.0,0.20680948]
[1644221687283,0.327202,42717.0,42713.0,0.21580076]
[1644221688284,0.29986533,42720.0,42713.0,0.21580076]
[1644221688583,0.327202,42719.0,42713.0,0.21580076]
[1644221688983,0.52765462,42719.0,42713.0,0.21580076]
[1644221690036,0.52706733,42719.0,42713.0,0.21580076]
[1644221690234,0.00058729,42718.0,42713.0,0.21580076]
[1644221690438,0.327202,42717.0,42708.0,0.0002144]
[1644221690637,0.05,42717.0,42707.0,0.07295702]
[1644221690837,0.00058729,42718.0,42714.0,0.08996285]
[1644221691035,0.327202,42717.0,42714.0,0.08996285]
[1644221691237,0.377202,42717.0,42714.0,0.08996285]
[1644221691436,0.327202,42716.0,42714.0,0.08996285]
[1644221691837,0.00058729,42718.0,42714.0,0.08996285]
[1644221692039,0.00058729,42718.0,42715.0,0.54077844]
[1644221692437,0.19986533,42725.0,42722.0,0.08512451]
[1644221692739,0.327202,42724.0,42715.0,0.15812742]
[1644221692937,0.19986533,42726.0,42715.0,0.15812742]
[1644221693139,0.19986533,42726.0,42720.0,0.20891731]
[1644221693338,0.19986533,42726.0,42722.0,0.21694832]
[1644221693537,0.19986533,42727.0,42720.0,0.20891731]
[1644221693785,0.00058729,42726.0,42722.0,0.0673625]
[1644221694083,0.32778929,42726.0,42722.0,0.0673625]
[1644221694284,0.32778929,42726.0,42716.0,0.05852]
[1644221694487,0.20045262,42726.0,42715.0,0.1153]
[1644221694687,0.20045262,42726.0,42715.0,0.325461]
[1644221694688,0.19986533,42725.0,42715.0,0.325461]
[1644221694890,0.19986533,42725.0,42715.0,0.32481074]
[1644221695183,0.00058729,42723.0,42715.0,0.51389374]
[1644221695784,0.00058729,42723.0,42720.0,0.08366645]
[1644221695984,0.29979799,42730.0,42721.0,0.3]
[1644221695985,0.19986533,42728.0,42721.0,0.3]
[1644221696184,0.00058729,42721.0,42720.0,0.13046645]
[1644221696384,0.00058729,42721.0,42720.0,0.45766845]
[1644221697182,0.3,42728.0,42720.0,0.374002]
[1644221697451,0.00058729,42723.0,42722.0,0.44092791]
[1644221697640,0.00058729,42723.0,42722.0,0.18985828]
[1644221698437,0.3,42728.0,42721.0,0.08159731]